fUSD/lending_fUSD_20251017
["ID","MTS","AMOUNT","RATE_DAILY","PERIOD"]
[391618267,1760706703860,-500.0,0.00025479,2]
[391618268,1760706703869,-500.0,0.00025479,2]
[391618269,1760706703879,-500.0,0.00025479,2]
[391618270,1760706703888,-558.21,0.00025479,2]
[391618271,1760706703898,-500.0,0.00025479,2]
[391618272,1760706703907,-500.0,0.00025479,2]
[391618273,1760706703917,-500.0,0.00025479,2]
[391618274,1760706703926,-176.58791465,0.00025479,2]
[391618275,1760706703936,-500.0,0.00025479,2]
[391618276,1760706703950,-500.0,0.00025479,2]
[391618277,1760706703959,-604.07056359,0.00025479,2]
[391618278,1760706703968,-1355.04,0.00025479,2]
[391618279,1760706703977,-500.0,0.00025479,2]
[391618280,1760706703987,-302.98599027,0.00025479,2]
[391618281,1760706703996,-1265.72,0.00025479,2]
[391618282,1760706704006,-500.0,0.00025479,2]
[391618283,1760706704020,-500.0,0.00025479,2]
[391618284,1760706704029,-431.964254,0.00025479,2]
[391618285,1760706704039,-500.0,0.00025479,2]
[391618286,1760706704048,-500.0,0.00025479,2]
[391618287,1760706704057,-500.0,0.00025479,2]
[391618288,1760706704067,-902.0,0.00025609,2]
[391618289,1760706704077,-1183.0,0.00025609,2]
[391618290,1760706704086,-390.39619011,0.00025625,30]
[391618291,1760706704096,-2546.0,0.00025637,2]
[391618292,1760706704106,-4712.0,0.00025637,2]
[391618293,1760706704115,-553.0,0.00025637,2]
[391618294,1760706704124,-6445.0,0.00025637,2]
[391618295,1760706704134,-150.0,0.0002567,2]
[391618296,1760706704143,-2220.07332795,0.00025682,4]
[391618297,1760706704154,-474.79,0.00025699,2]
[391618298,1760706704163,-1100.0,0.00025753,2]
[391618299,1760706704172,-500.0,0.00025753,2]
[391618300,1760706704183,-500.0,0.00025753,2]
[391618301,1760706704193,-500.0,0.00025753,2]
[391618302,1760706704203,-500.0,0.00025753,2]
[391618303,1760706704212,-500.0,0.00025753,2]
[391618304,1760706704222,-500.0,0.00025753,2]
[391618305,1760706704231,-500.0,0.00025753,2]
[391618306,1760706704241,-542.98377032,0.00025753,2]
[391618307,1760706704250,-500.0,0.00025753,2]
[391618308,1760706704261,-500.0,0.00025753,2]
[391618309,1760706704270,-500.0,0.00025753,2]
[391618310,1760706704280,-500.0,0.00025753,2]
[391618311,1760706704289,-500.0,0.00025753,2]
[391618312,1760706704298,-500.0,0.00025753,2]
[391618313,1760706704308,-1160.36,0.00025753,2]
[391618314,1760706704318,-150.00515091,0.00025753,2]
[391618315,1760706704328,-705.2,0.00025753,2]
[391618316,1760706704337,-500.0,0.00025753,2]
[391618317,1760706704346,-1150.12,0.00025753,2]
[391618318,1760706704355,-500.0,0.00025753,2]
[391618319,1760706704364,-630.42123157,0.00025753,2]
[391618320,1760706704374,-500.09,0.00025753,2]
[391618321,1760706704383,-500.0,0.00025753,2]
[391618322,1760706704392,-500.0,0.00025753,2]
[391618323,1760706704402,-500.0,0.00025753,2]
[391618324,1760706704411,-500.0,0.00025753,2]
[391618325,1760706704420,-624.28,0.00025753,2]
[391618326,1760706704431,-500.0,0.00025753,2]
[391618327,1760706704441,-229.21348324,0.00025753,2]
[391618328,1760706704450,-635.18,0.00025753,2]
[391618329,1760706704460,-500.0,0.00025753,2]
[391618330,1760706704469,-738.71,0.00025753,2]
[391618331,1760706704478,-500.0,0.00025753,2]
[391618332,1760706704489,-875.04,0.00025753,2]
[391618333,1760706704498,-500.0,0.00025753,2]
[391618334,1760706704509,-2590.26,0.00025753,2]
[391618335,1760706704519,-589.63,0.00025753,2]
[391618336,1760706704528,-500.0,0.00025753,2]
[391618337,1760706704538,-500.0,0.00025753,2]
[391618338,1760706704548,-1711.57,0.00025753,2]
[391618339,1760706704558,-549.57,0.00025753,2]
[391618340,1760706704568,-500.0,0.00025753,2]
[391618341,1760706704578,-500.0,0.00025753,2]
[391618342,1760706704587,-500.0,0.00025753,2]
[391618343,1760706704597,-500.0,0.00025753,2]
[391618344,1760706704607,-500.0,0.00025753,2]
[391618345,1760706704617,-500.0,0.00025753,2]
[391618346,1760706704627,-500.0,0.00025753,2]
[391618347,1760706704637,-500.0,0.00025753,2]
[391618348,1760706704647,-500.0,0.00025753,2]
[391618349,1760706704657,-500.0,0.00025753,2]
[391618350,1760706704667,-599.72,0.00025753,2]
[391618351,1760706704678,-500.0,0.00025753,2]
[391618352,1760706704688,-500.0,0.00025753,2]
[391618353,1760706704698,-500.0,0.00025753,2]
[391618354,1760706704707,-500.0,0.00025753,2]
[391618355,1760706704717,-926.78,0.00025753,2]
[391618356,1760706704727,-500.0,0.00025753,2]
[391618357,1760706704737,-375.33688204,0.00025753,2]
[391618358,1760706704747,-500.0,0.00025753,2]
[391618359,1760706704759,-352.87554215,0.00025753,2]
[391618360,1760706704769,-500.0,0.00025753,2]
[391618361,1760706704779,-500.0,0.00025753,2]
[391618362,1760706704789,-500.0,0.00025753,2]
[391618363,1760706704800,-500.0,0.00025753,2]
[391618364,1760706704810,-500.0,0.00025753,2]
[391618365,1760706704820,-500.0,0.00025753,2]
[391618366,1760706704830,-500.0,0.00025753,2]
[391618367,1760706704840,-500.0,0.00025753,2]
[391618368,1760706704850,-500.0,0.00025753,2]
[391618369,1760706704860,-1817.2,0.00025753,2]
[391618370,1760706704870,-500.0,0.00025753,2]
[391618371,1760706704879,-500.0,0.00025753,2]
[391618372,1760706704889,-500.0,0.00025753,2]
[391618373,1760706704899,-500.0,0.00025753,2]
[391618374,1760706704909,-1098.2,0.00025753,2]
[391618375,1760706704919,-500.0,0.00025753,2]
[391618376,1760706704928,-500.0,0.00025753,2]
[391618377,1760706704940,-616.14106004,0.00025753,2]
[391618378,1760706704951,-3442.59,0.00025753,2]
[391618379,1760706704961,-671.89,0.00025753,2]
[391618380,1760706704971,-2857.65,0.00025753,2]
[391618381,1760706704982,-500.0,0.00025753,2]
[391618382,1760706704991,-500.0,0.00025753,2]
[391618383,1760706705001,-500.0,0.00025753,2]
[391618384,1760706705013,-500.0,0.00025753,2]
[391618385,1760706705024,-1873.78,0.00025753,2]
[391618386,1760706705034,-500.0,0.00025753,2]
[391618387,1760706705044,-500.0,0.00025753,2]
[391618388,1760706705054,-3177.57,0.00025753,2]
[391618389,1760706705064,-770.05,0.00025753,2]
[391618390,1760706705074,-500.0,0.00025753,2]
[391618391,1760706705084,-500.0,0.00025753,2]
[391618392,1760706705094,-345.11768979,0.00025753,2]
[391618393,1760706705104,-500.0,0.00025753,2]
[391618394,1760706705114,-500.0,0.00025753,2]
[391618395,1760706705124,-500.0,0.00025753,2]
[391618396,1760706705135,-500.0,0.00025753,2]
[391618397,1760706705145,-543.44,0.00025753,2]
[391618398,1760706705156,-500.0,0.00025753,2]
[391618399,1760706705166,-216.94509553,0.00025753,2]
[391618400,1760706705176,-1701.03,0.00025753,2]
[391618401,1760706705186,-500.0,0.00025753,2]
[391618402,1760706705196,-1140.2,0.00025753,2]
[391618403,1760706705206,-500.0,0.00025753,2]
[391618404,1760706705216,-1288.92,0.00025753,2]
[391618405,1760706705227,-500.0,0.00025753,2]
[391618406,1760706705238,-500.0,0.00025753,2]
[391618407,1760706705248,-494.1,0.00025753,2]
[391618408,1760706705260,-500.0,0.00025753,2]
[391618409,1760706705270,-1387.94,0.00025753,2]
[391618410,1760706705280,-3652.14,0.00025753,2]
[391618411,1760706705290,-500.0,0.00025753,2]
[391618412,1760706705300,-500.0,0.00025753,2]
[391618413,1760706705310,-500.0,0.00025753,2]
[391618414,1760706705320,-1998.52,0.00025753,2]
[391618415,1760706705330,-511.22,0.00025753,2]
[391618416,1760706705340,-184.62210335,0.00025753,2]
[391618417,1760706705350,-780.1,0.00025753,2]
[391618418,1760706705360,-500.0,0.00025753,2]
[391618419,1760706705371,-500.0,0.00025753,2]
[391618420,1760706705381,-500.0,0.00025753,2]
[391618421,1760706705392,-3252.66,0.00025753,2]
[391618422,1760706705402,-500.0,0.00025753,2]
[391618423,1760706705412,-500.0,0.00025753,2]
[391618424,1760706705422,-500.0,0.00025753,2]
[391618425,1760706705432,-500.0,0.00025753,2]
[391618426,1760706705442,-500.0,0.00025753,2]
[391618427,1760706705451,-500.0,0.00025753,2]
[391618428,1760706705462,-500.0,0.00025753,2]
[391618429,1760706705471,-365.29209406,0.00025753,2]
[391618430,1760706705481,-500.0,0.00025753,2]
[391618431,1760706705491,-500.0,0.00025753,2]
[391618432,1760706705501,-500.0,0.00025753,2]
[391618433,1760706705510,-500.0,0.00025753,2]
[391618434,1760706705520,-500.0,0.00025753,2]
[391618435,1760706705530,-1046.4,0.00025753,2]
[391618436,1760706705540,-500.0,0.00025753,2]
[391618437,1760706705550,-1485.37,0.00025753,2]
[391618438,1760706705560,-2359.88,0.00025753,2]
[391618439,1760706705570,-1140.79,0.00025753,2]
[391618440,1760706705579,-500.0,0.00025753,2]
[391618441,1760706705590,-500.0,0.00025753,2]
[391618442,1760706705600,-483.97555511,0.00025753,2]
[391618443,1760706705611,-522.5,0.00025753,2]
[391618444,1760706705620,-970.74,0.00025753,2]
[391618445,1760706705631,-500.0,0.00025753,2]
[391618446,1760706705641,-553.69551611,0.00025753,2]
[391618447,1760706705651,-500.0,0.00025753,2]
[391618448,1760706705661,-507.36,0.00025753,2]
[391618449,1760706705671,-500.0,0.00025753,2]
[391618450,1760706705681,-425.55251559,0.00025753,2]
[391618451,1760706705691,-500.0,0.00025753,2]
[391618452,1760706705701,-500.0,0.00025753,2]
[391618453,1760706705710,-500.0,0.00025753,2]
[391618454,1760706705725,-500.0,0.00025753,2]
[391618455,1760706705736,-500.0,0.00025753,2]
[391618456,1760706705746,-693.35,0.00025753,2]
[391618457,1760706705756,-644.5,0.00025753,2]
[391618458,1760706705771,-500.0,0.00025753,2]
[391618459,1760706705782,-1506.26,0.00025753,2]
[391618460,1760706705792,-668.62,0.00025753,2]
[391618461,1760706705803,-495.43,0.00025753,2]
[391618462,1760706705814,-693.02,0.00025753,2]
[391618463,1760706705824,-500.0,0.00025753,2]
[391618464,1760706705834,-500.0,0.00025753,2]
[391618465,1760706705845,-500.0,0.00025753,2]
[391618466,1760706705855,-1249.99,0.00025753,2]
[391618467,1760706705866,-500.0,0.00025753,2]
[391618468,1760706705876,-500.0,0.00025753,2]
[391618469,1760706705888,-1494.42,0.00025753,2]
[391618470,1760706705898,-500.0,0.00025753,2]
[391618471,1760706705909,-500.0,0.00025753,2]
[391618472,1760706705923,-500.0,0.00025753,2]
[391618473,1760706705934,-500.0,0.00025753,2]
[391618474,1760706705949,-500.0,0.00025753,2]
[391618475,1760706705960,-500.0,0.00025753,2]
[391618476,1760706705970,-1421.83,0.00025753,2]
[391618477,1760706705981,-500.0,0.00025753,2]
[391618478,1760706705992,-553.15,0.00025753,2]
[391618479,1760706706003,-433.8172454,0.00025753,2]
[391618480,1760706706014,-500.0,0.00025753,2]
[391618481,1760706706024,-272.07085876,0.00025753,2]
[391618482,1760706706035,-242.86485994,0.00025753,2]
[391618483,1760706706046,-840.86,0.00025753,2]
[391618484,1760706706056,-500.0,0.00025753,2]
[391618485,1760706706067,-424.6999227,0.00025753,2]
[391618486,1760706706078,-500.0,0.00025753,2]
[391618487,1760706706089,-500.0,0.00025753,2]
[391618488,1760706706099,-500.0,0.00025753,2]
[391618489,1760706706110,-500.0,0.00025753,2]
[391618490,1760706706124,-1604.59,0.00025753,2]
[391618491,1760706706137,-500.0,0.00025753,2]
[391618492,1760706706148,-500.0,0.00025753,2]
[391618493,1760706706159,-500.0,0.00025753,2]
[391618494,1760706706170,-500.0,0.00025753,2]
[391618495,1760706706182,-500.0,0.00025753,2]
[391618496,1760706706193,-500.0,0.00025753,2]
[391618497,1760706706204,-620.21,0.00025753,2]
[391618498,1760706706215,-500.0,0.00025753,2]
[391618499,1760706706227,-573.16143346,0.00025753,2]
[391618500,1760706706237,-2000.0,0.00025753,7]
[391618501,1760706706248,-352.11547726,0.00025753,2]
[391618502,1760706706259,-500.0,0.00025753,2]
[391618503,1760706706269,-500.0,0.00025753,2]
[391618504,1760706706279,-178.45696124,0.00025753,2]
[391618505,1760706706290,-500.0,0.00025753,2]
[391618506,1760706706300,-500.0,0.00025753,2]
[391618507,1760706706311,-500.0,0.00025753,2]
[391618508,1760706706321,-500.0,0.00025753,2]
[391618509,1760706706332,-633.38,0.00025753,2]
[391618510,1760706706342,-500.0,0.00025753,2]
[391618511,1760706706353,-500.0,0.00025753,2]
[391618512,1760706706364,-500.0,0.00025753,2]
[391618513,1760706706375,-666.66,0.00025753,2]
[391618514,1760706706386,-500.0,0.00025753,2]
[391618515,1760706706397,-500.0,0.00025753,2]
[391618516,1760706706409,-500.0,0.00025753,2]
[391618517,1760706706419,-500.0,0.00025753,2]
[391618518,1760706706431,-712.19,0.00025753,2]
[391618519,1760706706442,-706.74,0.00025753,2]
[391618520,1760706706452,-500.0,0.00025753,2]
[391618521,1760706706463,-500.0,0.00025753,2]
[391618522,1760706706474,-500.0,0.00025753,2]
[391618523,1760706706485,-652.89,0.00025753,2]
[391618524,1760706706496,-2526.26,0.00025753,2]
[391618525,1760706706521,-500.0,0.00025753,2]
[391618526,1760706706534,-500.0,0.00025753,2]
[391618527,1760706706547,-500.0,0.00025753,2]
[391618528,1760706706558,-574.16060833,0.00025753,2]
[391618529,1760706706569,-157.6282988,0.00025753,2]
[391618530,1760706706581,-1026.4,0.00025753,2]
[391618531,1760706706592,-500.0,0.00025753,2]
[391618532,1760706706603,-720.5,0.00025753,2]
[391618533,1760706706614,-428.98091251,0.00025753,2]
[391618534,1760706706625,-500.0,0.00025753,2]
[391618535,1760706706635,-500.0,0.00025753,2]
[391618536,1760706706647,-500.0,0.00025753,2]
[391618537,1760706706659,-1119.53,0.00025753,2]
[391618538,1760706706670,-500.0,0.00025753,2]
[391618539,1760706706682,-500.0,0.00025753,2]
[391618540,1760706706693,-1000.0,0.00025753,2]
[391618541,1760706706704,-156.78195695,0.00025753,2]
[391618542,1760706706715,-500.0,0.00025753,2]
[391618543,1760706706725,-500.0,0.00025753,2]
[391618544,1760706706736,-500.0,0.00025753,2]
[391618545,1760706706746,-2452.62,0.00025753,2]
[391618546,1760706706757,-629.56,0.00025753,2]
[391618547,1760706706768,-247.9589272,0.00025753,2]
[391618548,1760706706779,-500.0,0.00025753,2]
[391618549,1760706706791,-500.0,0.00025753,2]
[391618550,1760706706803,-500.0,0.00025753,2]
[391618551,1760706706815,-642.79,0.00025753,2]
[391618552,1760706706827,-500.0,0.00025753,2]
[391618553,1760706706839,-500.0,0.00025753,2]
[391618554,1760706706851,-500.0,0.00025753,2]
[391618555,1760706706868,-500.0,0.00025753,2]
[391618556,1760706706880,-2976.2,0.00025753,2]
[391618557,1760706706892,-910.91,0.00025753,2]
[391618558,1760706706903,-404.86553524,0.00025753,2]
[391618559,1760706706915,-500.0,0.00025753,2]
[391618560,1760706706928,-500.0,0.00025753,2]
[391618561,1760706706942,-500.0,0.00025753,2]
[391618562,1760706706954,-500.0,0.00025753,2]
[391618563,1760706706965,-467.90198181,0.00025753,2]
[391618564,1760706706977,-530.71,0.00025753,2]
[391618565,1760706706988,-500.0,0.00025753,2]
[391618566,1760706707000,-500.0,0.00025753,2]
[391618567,1760706707012,-500.0,0.00025753,2]
[391618568,1760706707024,-500.0,0.00025753,2]
[391618569,1760706707036,-566.55,0.00025753,2]
[391618570,1760706707049,-500.0,0.00025753,2]
[391618571,1760706707466,-500.0,0.00025753,2]
[391618572,1760706707489,-549.85,0.00025753,2]
[391618573,1760706707499,-500.0,0.00025753,2]
[391618574,1760706707509,-500.0,0.00025753,2]
[391618575,1760706707519,-500.0,0.00025753,2]
[391618576,1760706707530,-2897.84,0.00025753,2]
[391618577,1760706707540,-500.0,0.00025753,2]
[391618578,1760706707550,-500.0,0.00025753,2]
[391618579,1760706707560,-500.0,0.00025753,2]
[391618580,1760706707569,-1306.87,0.00025753,2]
[391618581,1760706707579,-500.0,0.00025753,2]
[391618582,1760706707588,-3268.99,0.00025753,2]
[391618583,1760706707599,-300.0,0.00025753,2]
[391618584,1760706707610,-500.0,0.00025753,2]
[391618585,1760706707619,-500.0,0.00025753,2]
[391618586,1760706707629,-500.0,0.00025753,2]
[391618587,1760706707639,-500.0,0.00025753,2]
[391618588,1760706707650,-500.0,0.00025753,2]
[391618589,1760706707661,-5615.98,0.00025753,2]
[391618590,1760706707671,-500.0,0.00025753,2]
[391618591,1760706707682,-500.0,0.00025753,2]
[391618592,1760706707692,-500.0,0.00025753,2]
[391618593,1760706707702,-1945.5,0.00025753,2]
[391618594,1760706707712,-500.0,0.00025753,2]
[391618595,1760706707722,-1073.41,0.00025753,2]
[391618596,1760706707731,-500.0,0.00025753,2]
[391618597,1760706707741,-500.0,0.00025753,2]
[391618598,1760706707750,-500.0,0.00025753,2]
[391618599,1760706707760,-245.30280516,0.00025753,2]
[391618600,1760706707770,-233.36622653,0.00025753,2]
[391618601,1760706707780,-500.0,0.00025753,2]
[391618602,1760706707790,-500.0,0.00025753,2]
[391618603,1760706707800,-500.0,0.00025753,2]
[391618604,1760706707809,-500.0,0.00025753,2]
[391618605,1760706707820,-2861.79,0.00025753,2]
[391618606,1760706707830,-521.31040891,0.00025753,2]
[391618607,1760706707840,-1625.42,0.00025753,2]
[391618608,1760706707850,-500.0,0.00025753,2]
[391618609,1760706707860,-526.31,0.00025753,2]
[391618610,1760706707870,-541.5462903,0.00025753,2]
[391618611,1760706707880,-500.0,0.00025753,2]
[391618612,1760706707890,-500.0,0.00025753,2]
[391618613,1760706707900,-283.25506108,0.00025753,2]
[391618614,1760706707911,-500.0,0.00025753,2]
[391618615,1760706707921,-500.0,0.00025753,2]
[391618616,1760706707934,-1444.32,0.00025753,2]
[391618617,1760706707948,-500.0,0.00025753,2]
[391618618,1760706707958,-500.0,0.00025753,2]
[391618619,1760706707968,-500.0,0.00025753,2]
[391618620,1760706707977,-500.0,0.00025753,2]
[391618621,1760706707989,-500.0,0.00025753,2]
[391618622,1760706707999,-2291.56,0.00025753,2]
[391618623,1760706708008,-500.0,0.00025753,2]
[391618624,1760706708018,-618.56,0.00025753,2]
[391618625,1760706708031,-500.0,0.00025753,2]
[391618626,1760706708041,-500.0,0.00025753,2]
[391618627,1760706708056,-500.0,0.00025753,2]
[391618628,1760706708066,-500.0,0.00025753,2]
[391618629,1760706708075,-500.0,0.00025753,2]
[391618630,1760706708085,-3283.98,0.00025753,2]
[391618631,1760706708095,-1615.68,0.00025753,2]
[391618632,1760706708105,-500.0,0.00025753,2]
[391618633,1760706708115,-500.0,0.00025753,2]
[391618634,1760706708125,-227.66621187,0.00025753,2]
[391618635,1760706708134,-4383.35,0.00025753,2]
[391618636,1760706708144,-583.84,0.00025753,2]
[391618637,1760706708155,-6598.67,0.00025753,2]
[391618638,1760706708164,-1559.75,0.00025753,2]
[391618639,1760706708174,-939.83,0.00025753,2]
[391618640,1760706708183,-500.0,0.00025753,2]
[391618641,1760706708193,-500.0,0.00025753,2]
[391618642,1760706708204,-456.83713576,0.00025753,2]
[391618643,1760706708214,-500.0,0.00025753,2]
[391618644,1760706708223,-500.0,0.00025753,2]
[391618645,1760706708233,-500.0,0.00025753,2]
[391618646,1760706708243,-558.21,0.00025753,2]
[391618647,1760706708253,-500.0,0.00025753,2]
[391618648,1760706708263,-500.0,0.00025753,2]
[391618649,1760706708272,-551.38,0.00025753,2]
[391618650,1760706708282,-500.0,0.00025753,2]
[391618651,1760706708291,-500.0,0.00025753,2]
[391618652,1760706708301,-1355.04,0.00025753,2]
[391618653,1760706708311,-500.0,0.00025753,2]
[391618654,1760706708320,-1265.72,0.00025753,2]
[391618655,1760706708329,-500.0,0.00025753,2]
[391618656,1760706708340,-500.0,0.00025753,2]
[391618657,1760706708349,-500.0,0.00025753,2]
[391618658,1760706708359,-500.0,0.00025753,2]
[391618659,1760706708369,-506.61465936,0.00025753,2]
[391618660,1760706708379,-1181.51,0.00025786,2]
[391618661,1760706708390,-9999.99,0.00025786,2]
[391618662,1760706708399,-299.99,0.00025786,12]
[391618663,1760706708409,-2800.38,0.00025786,2]
[391618664,1760706708418,-150.99,0.00025786,2]
[391618665,1760706708428,-999.99,0.00025786,2]
[391618666,1760706708438,-10117.65,0.00025786,10]
[391618667,1760706708449,-1134.69,0.00025786,2]
[391618668,1760706708459,-9999.99,0.00025786,2]
[391618669,1760706708468,-150.99,0.00025786,2]
[391618670,1760706708478,-1914315.28564593,0.000258,2]
[391618671,1760706708488,-14928.46,0.000258,7]
[391618672,1760706708498,-429.96,0.00025836,2]
[391618673,1760706708508,-413.23,0.00025836,2]
[391618674,1760706708519,-150.0,0.00025869,2]
[391618675,1760706708529,-300.0,0.00025869,2]
[391618676,1760706708539,-150.0,0.00025869,2]
[391618677,1760706708548,-500.0,0.00025878,7]
[391618678,1760706708558,-500.0,0.00025878,7]
[391618679,1760706708568,-528.51413319,0.00025878,7]
[391618680,1760706708578,-500.0,0.00025878,7]
[391618681,1760706708587,-500.0,0.00025878,7]
[391618682,1760706708597,-500.0,0.00025878,7]
[391618683,1760706708607,-516.6200901,0.00025878,7]
[391618684,1760706708617,-500.0,0.00025878,7]
[391618685,1760706708627,-500.0,0.00025878,7]
[391618686,1760706708637,-515.7909494,0.00025878,7]
[391618687,1760706708647,-500.0,0.00025878,7]
[391618688,1760706708656,-900.0,0.00025878,7]
[391618689,1760706708666,-509.83784598,0.00025878,7]
[391618690,1760706708675,-513.26262359,0.00025878,7]
[391618691,1760706708685,-4135.67720157,0.000259,2]
[391618692,1760706708695,-316.5,0.00025982,15]
[391618693,1760706708704,-2220.07332795,0.00025992,4]
[391618694,1760706708713,-1790.97277427,0.00026,5]
[391618695,1760706708722,-166.31326568,0.00026,2]
[391618696,1760706708732,-500.0,0.00026027,2]
[391618697,1760706708742,-500.0,0.00026027,2]
[391618698,1760706708752,-500.0,0.00026027,2]
[391618699,1760706708762,-500.0,0.00026027,2]
[391618700,1760706708771,-500.0,0.00026027,2]
[391618701,1760706708781,-500.0,0.00026027,2]
[391618702,1760706708790,-500.0,0.00026027,2]
[391618703,1760706708799,-618.48139511,0.00026027,2]
[391618704,1760706708810,-500.0,0.00026027,2]
[391618705,1760706708819,-500.0,0.00026027,2]
[391618706,1760706708828,-500.0,0.00026027,2]
[391618707,1760706708839,-500.0,0.00026027,2]
[391618708,1760706708849,-500.0,0.00026027,2]
[391618709,1760706708858,-1160.36,0.00026027,2]
[391618710,1760706708867,-705.2,0.00026027,2]
[391618711,1760706708877,-500.0,0.00026027,2]
[391618712,1760706708886,-1150.12,0.00026027,2]
[391618713,1760706708896,-500.0,0.00026027,2]
[391618714,1760706708905,-500.09,0.00026027,2]
[391618715,1760706708915,-500.0,0.00026027,2]
[391618716,1760706708925,-500.0,0.00026027,2]
[391618717,1760706708935,-383.559621,0.00026027,2]
[391618718,1760706708949,-500.0,0.00026027,2]
[391618719,1760706708959,-624.28,0.00026027,2]
[391618720,1760706708968,-500.0,0.00026027,2]
[391618721,1760706708978,-635.18,0.00026027,2]
[391618722,1760706708989,-500.0,0.00026027,2]
[391618723,1760706708999,-738.71,0.00026027,2]
[391618724,1760706709008,-500.0,0.00026027,2]
[391618725,1760706709019,-875.04,0.00026027,2]
[391618726,1760706709029,-500.0,0.00026027,2]
[391618727,1760706709038,-2590.26,0.00026027,2]
[391618728,1760706709048,-589.63,0.00026027,2]
[391618729,1760706709058,-500.0,0.00026027,2]
[391618730,1760706709068,-291.29179927,0.00026027,2]
[391618731,1760706709078,-1711.57,0.00026027,2]
[391618732,1760706709087,-549.57,0.00026027,2]
[391618733,1760706709097,-500.0,0.00026027,2]
[391618734,1760706709107,-502.04425681,0.00026027,2]
[391618735,1760706709117,-500.0,0.00026027,2]
[391618736,1760706709126,-501.35233097,0.00026027,2]
[391618737,1760706709137,-501.35321661,0.00026027,2]
[391618738,1760706709147,-500.0,0.00026027,2]
[391618739,1760706709156,-500.0,0.00026027,2]
[391618740,1760706709166,-500.0,0.00026027,2]
[391618741,1760706709177,-500.0,0.00026027,2]
[391618742,1760706709186,-500.0,0.00026027,2]
[391618743,1760706709196,-599.72,0.00026027,2]
[391618744,1760706709206,-500.0,0.00026027,2]
[391618745,1760706709216,-500.0,0.00026027,2]
[391618746,1760706709226,-500.0,0.00026027,2]
[391618747,1760706709235,-500.0,0.00026027,2]
[391618748,1760706709244,-926.78,0.00026027,2]
[391618749,1760706709254,-500.0,0.00026027,2]
[391618750,1760706709264,-500.0,0.00026027,2]
[391618751,1760706709273,-500.0,0.00026027,2]
[391618752,1760706709283,-424.92940771,0.00026027,2]
[391618753,1760706709292,-586.93826284,0.00026027,2]
[391618754,1760706709302,-500.0,0.00026027,2]
[391618755,1760706709311,-500.0,0.00026027,2]
[391618756,1760706709321,-500.0,0.00026027,2]
[391618757,1760706709331,-500.0,0.00026027,2]
[391618758,1760706709340,-500.0,0.00026027,2]
[391618759,1760706709350,-500.0,0.00026027,2]
[391618760,1760706709359,-1817.2,0.00026027,2]
[391618761,1760706709369,-198.51659877,0.00026027,2]
[391618762,1760706709379,-500.0,0.00026027,2]
[391618763,1760706709389,-581.53211688,0.00026027,2]
[391618764,1760706709399,-500.0,0.00026027,2]
[391618765,1760706709409,-1098.2,0.00026027,2]
[391618766,1760706709419,-643.23755797,0.00026027,2]